[Event "Romanian-ch Youth Open U18 2024"]
[Site "Eforie Nord"]
[Date "2024.04.15"]
[Round "5.1"]
[White "Nastore, Pavel-Alexandru"]
[Black "Sachilaru, Alexandru"]
[Result "1/2-1/2"]
[ECO "B90"]
[WhiteElo "2189"]
[BlackElo "2203"]
[Annotator "TA"]
[PlyCount "71"]
[EventDate "2024.04.10"]
[EventType "swiss"]
[EventCountry "ROU"]
[SourceTitle "playchess.com"]
[Source "ChessBase"]
[SourceQuality "1"]
[TimeControl "5400+30"]

{[%evp 13,71,9,12,0,37,31,36,35,49,52,61,64,62,61,80,78,127,65,77,76,63,50,86,61,81,77,83,89,85,87,91,91,91,93,95,95,103,92,93,86,85,70,92,51,65,37,100,80,96,35,56,54,51,50,41,41,42,29,33,0]} 1. e4 {[%emt 0:00:10]} c5 {[%emt 0:00:12]} 2. Nf3 {[%emt 0:00:04]} d6 {[%emt 0:00:08]} 3. d4 {[%emt 0:00:03]} cxd4 {[%emt 0:00:09]} 4. Nxd4 {[%emt 0:00:06]} Nf6 {[%emt 0:00:06]} 5. Nc3 {[%emt 0:00:03]} a6 {[%emt 0:00:09]} 6. Be3 {[%emt 0:00:03]} e5 {[%emt 0:00:45]} 7. Nf3 {[%emt 0:00:05]} Be7 {[%emt 0:01:05]} 8. Nd2 {[%emt 0:00:31]} Qc7 {[%emt 0:04:13]} 9. Nc4 $1 {[%emt 0:02:04]} Nbd7 {[%emt 0:01:52] Repels Nb6} 10. a4 {[%emt 0:00:13]} b6 {[%emt 0:09:05]} 11. Be2 {[%emt 0:00:10]} Bb7 {[%emt 0:01:22]} 12. f3 {[%emt 0:00:09]} O-O {[%emt 0:01:46]} 13. O-O {[%emt 0:00:13]} Rfd8 {[%emt 0:05:45][%cal Od6d5]} 14. Bf2 {[%emt 0:04:42]} Nc5 {[%emt 0:16:06]} (14... g6 $142) 15. Ne3 {[%emt 0:03:35]} (15. b4 $16 Ncd7 16. Qd2) 15... Ne6 $14 {[%emt 0:04:01]} 16. Bc4 {[%emt 0:04:14]} Nf4 {[%emt 0:05:38][%cal Od6d5]} 17. b3 {[%emt 0:00:48]} Rd7 {[%emt 0:08:26]} 18. Ncd5 {[%emt 0:08:18]} N6xd5 {[%emt 0:03:24]} 19. Bxd5 {[%emt 0:03:47]} Bxd5 {[%emt 0:03:03]} 20. Nxd5 {[%emt 0:00:10]} Nxd5 {[%emt 0:00:26]} 21. Qxd5 {[%emt 0:00:05]} Qb7 {[%emt 0:04:01]} 22. Rfd1 {[%emt 0:01:25] White has more active pieces.} Rc8 {[%emt 0:03:29]} 23. c4 {[%emt 0:00:23]} Qxd5 {[%emt 0:02:01]} 24. Rxd5 {[%emt 0:00:17]} ({Don't take} 24. cxd5 Bd8 $14) 24... Rb7 {[%emt 0:01:08]} 25. Kf1 {[%emt 0:06:57]} f6 {[%emt 0:01:10]} 26. Ke2 {[%emt 0:00:31]} Kf7 {[%emt 0:01:31]} 27. Kd3 {[%emt 0:02:24]} Ke6 {[%emt 0:02:37]} 28. b4 {[%emt 0:02:16]} Bd8 {[%emt 0:01:44]} 29. Rb1 {[%emt 0:06:21]} Rd7 {[%emt 0:02:23]} (29... g6 $14) 30. Be3 {[%emt 0:13:48]} g6 {[%emt 0:01:27]} 31. Rb3 {[%emt 0:25:11]} (31. g4 $16) 31... Rb7 {[%emt 0:04:00]} 32. Rc3 {[%emt 0:00:21]} a5 {[%emt 0:02:37]} 33. Rb3 {[%emt 0:06:26] [#] bxa5 would now be deadly.} axb4 {[%emt 0:01:50]} 34. Rxb4 {[%emt 0:00:06]} Rcb8 $1 {[%emt 0:01:34]} 35. Rdb5 {[%emt 0:04:18][%cal Oa4a5]} Kd7 {[%emt 0:00:43]} 36. a5 {[%emt 0:00:37] Weighted Error Value: White=0.13 (very precise) /Black=0.12 (very precise) .  Mistake:       	White=2     	Black=2      Inaccurate:     	White=3     	Black=2      OK:         	White=8     	Black=7      Strong:       	White=1     	Black=1} 1/2-1/2

[Event "Romanian-ch Youth Open U18 2024"]
[Site "Eforie Nord"]
[Date "2024.04.16"]
[Round "6.1"]
[White "Nastore, Pavel-Alexandru"]
[Black "Creanga, Robert-Ionut"]
[Result "1-0"]
[ECO "B12"]
[WhiteElo "2189"]
[BlackElo "2284"]
[Annotator "TA"]
[PlyCount "65"]
[EventDate "2024.04.10"]
[EventType "swiss"]
[EventCountry "ROU"]
[SourceTitle "playchess.com"]
[Source "ChessBase"]
[SourceQuality "1"]
[TimeControl "5400+30"]

{[%evp 9,65,14,20,0,26,25,31,32,30,17,31,37,31,33,25,39,47,19,20,15,11,20,20,16,16,0,86,51,87,90,89,91,89,88,106,39,30,28,114,111,688,658,1685,1614,1601,1326,29981,29982,29978,29971,29990,29991,29991,29988,29988,29989,29991,29990]} 1. e4 {[%emt 0:00:08]} c6 {[%emt 0:01:39]} 2. d4 {[%emt 0:00:05]} d5 {[%emt 0:00:25]} 3. e5 {[%emt 0:00:05]} c5 {[%emt 0:00:57]} 4. dxc5 {[%emt 0:00:05]} e6 {[%emt 0:00:31]} 5. Nf3 {[%emt 0:00:04]} Bxc5 {[%emt 0:02:48]} 6. a3 {[%emt 0:00:04]} f6 {[%emt 0:02:46]} 7. b4 {[%emt 0:24:13]} Be7 {[%emt 0:01:22]} 8. Bb2 $1 {[%emt 0:13:09] White is slightly better.} a5 {[%emt 0:02:08]} 9. b5 {[%emt 0:03:10]} Nd7 {[%emt 0:01:39]} 10. c4 {[%emt 0:02:05]} Nxe5 {[%emt 0:01:39]} 11. Nxe5 {[%emt 0:00:58]} fxe5 {[%emt 0:00:16]} 12. Bxe5 {[%emt 0:07:33]} Nf6 {[%emt 0:02:01]} 13. Nd2 {[%emt 0:07:13]} O-O {[%emt 0:19:43]} 14. Bd3 {[%emt 0:00:40]} b6 {[%emt 0:06:03]} 15. O-O {[%emt 0:00:31]} Bb7 {[%emt 0:01:12]} 16. Qe2 {[%emt 0:03:08]} a4 {[%emt 0:03:44]} 17. Nf3 {[%emt 0:09:54]} Ne4 {[%emt 0:23:54] Wards off Ng5} (17... Bc5 $11 {keeps the balance.}) 18. Nd4 $16 {[%emt 0:02:24]} Qd7 {[%emt 0:09:17]} 19. Rad1 $40 {[%emt 0:10:17][%mdl 128] Black is in trouble.} Nc5 {[%emt 0:02:24]} 20. Bb1 {[%emt 0:04:27] Threatens to win with cxd5.} Bf6 {[%emt 0:01:21]} 21. Ba2 {[%emt 0:06:54]} Ne4 {[%emt 0:03:18] [#]} 22. Nc6 {[%emt 0:02:38][%mdl 512]} Bxe5 $14 {[%emt 0:08:37]} 23. cxd5 {[%emt 0:00:08][%cal Bc4d5,Bd5e6,Be6e7][%mdl 32]} Bxh2+ {[%emt 0:03:03] [#]} 24. Kh1 $1 $16 {[%emt 0:00:05]} (24. Kxh2 Nc3 25. dxe6 (25. Qxe6+ Qxe6 26. dxe6 Nxa2 $11) 25... Qc7+ (25... Nxd1 26. exd7+ Kh8 27. Rxd1 h6 28. Ne5 Bxg2 29. Ng6+ Kh7 30. Nxf8+ Rxf8 31. Qc2+ g6 32. d8=Q Rxd8 33. Qc7+) 26. Qe5 Qxe5+ 27. Nxe5 Nxa2 $14) 24... Rxf2 $2 {[%emt 0:00:56][%mdl 8192] Loses the game.} 25. Qxe4 $18 {[%emt 0:01:03]} Rxa2 {[%emt 0:00:36]} 26. dxe6 {[%emt 0:00:58]} Qe8 {[%emt 0:00:26]} 27. e7 {[%emt 0:00:43] Intending Rd8 and mate.} Bf4 {[%emt 0:00:38]} 28. Qc4+ {White mates.} Kh8 {[%emt 0:00:30]} 29. Rd8 {Active counter play!} (29. Qxa2 $2 {loses.} Qh5+ 30. Kg1 Be3+ $19 (30... Qxb5 31. Rd8+) (30... Qxb5 31. Rd8+)) 29... Bxc6 {[%emt 0:00:30]} 30. Rxe8+ ({Not} 30. Qxa2 Rxd8 31. exd8=R (31. exd8=Q Qxd8 32. Rxf4 Bxb5 $18) 31... Qxd8 $18) 30... Bxe8 {[%emt 0:00:30]} 31. Qxa2 g5 {[%emt 0:00:30]} 32. Qd5 Rc8 {[%emt 0:00:30]} 33. Qd8 {Weighted Error Value: White=0.06 (flawless) /Black=0.49.  Loses game:     	---       	Black=1      Mistake:       	White=1     	Black=2      Inaccurate:     	White=1     	Black=2      OK:         	White=7     	Black=10     Best:        	White=2     	Black=1      Strong:       	White=2     	---} 1-0

[Event "Romanian-ch Youth Open U18 2024"]
[Site "Eforie Nord"]
[Date "2024.04.16"]
[Round "6.2"]
[White "Sachilaru, Alexandru"]
[Black "Filip, Andrei"]
[Result "1/2-1/2"]
[ECO "B47"]
[WhiteElo "2203"]
[BlackElo "2299"]
[Annotator "TA"]
[PlyCount "98"]
[EventDate "2024.04.10"]
[EventType "swiss"]
[EventCountry "ROU"]
[SourceTitle "playchess.com"]
[Source "ChessBase"]
[SourceQuality "1"]
[TimeControl "5400+30"]

{[%evp 12,98,25,4,0,3,9,6,13,0,21,30,43,27,37,33,33,29,69,58,57,58,45,50,62,-2,53,16,15,15,8,0,0,-25,0,0,33,0,0,0,0,0,1,0,0,0,5,10,70,67,63,0,0,0,0,0,0,-18,-18,-18,-18,-18,0,0,0,0,0,0,0,0,-4,-12,-12,-13,0,0,0,0,15,12,20,0,7,8,8,1,1,0,8]} 1. e4 {[%emt 0:00:04]} c5 {[%emt 0:00:12]} 2. Nf3 {[%emt 0:00:11]} e6 {[%emt 0:00:10]} 3. d4 {[%emt 0:00:13]} cxd4 {[%emt 0:00:05]} 4. Nxd4 {[%emt 0:00:08]} Nc6 {[%emt 0:00:11]} 5. Nc3 {[%emt 0:02:51]} Qc7 {[%emt 0:00:11]} 6. Nxc6 {[%emt 0:01:54]} dxc6 {[%emt 0:06:04]} 7. Bd3 {[%emt 0:02:23]} e5 {[%emt 0:00:50]} 8. O-O {[%emt 0:01:14]} Nf6 {[%emt 0:01:42]} 9. Qe2 {[%emt 0:05:44]} Be7 {[%emt 0:17:14]} 10. f4 {[%emt 0:14:25]} Bd6 {[%emt 0:16:18]} 11. f5 {[%emt 0:02:22]} h5 {[%emt 0:02:55]} 12. Nd1 {[%emt 0:09:44][%cal Bc3d1,Bd1e3,Be3c4][%mdl 32]} Bc5+ {[%emt 0:02:48]} 13. Be3 {[%emt 0:04:29]} Qb6 {[%emt 0:02:35]} 14. Kh1 {[%emt 0:13:04]} Bd7 {[%emt 0:05:41]} 15. a4 {[%emt 0:06:10] [#] a5 would now be deadly.} Bxe3 {[%emt 0:04:59]} 16. Nxe3 {[%emt 0:06:05]} h4 {[%emt 0:07:44]} 17. Nc4 {[%emt 0:03:20][%csl LRb6,LRe5]} Qc5 {[%emt 0:01:01]} 18. Qf2 {[%emt 0:06:52]} ({White should play} 18. Qe1 $14) 18... Qe7 {[%emt 0:01:01]} (18... Nxe4 $1 $11 19. Qxc5 Nxc5) 19. Qe3 {[%emt 0:02:27][%cal Ob2b4]} c5 {[%emt 0:08:29]} 20. Rfd1 {[%emt 0:03:53]} Rd8 {[%emt 0:05:26]} 21. Be2 {[%emt 0:04:13] Strongly threatening Nd6+.} O-O {[%emt 0:01:35][%cal Od7a4]} 22. Bf3 {[%emt 0:04:42]} Bc6 {[%emt 0:00:56]} (22... Bxa4 $5 23. Rxd8 (23. Rxa4 Rxd1+ 24. Bxd1 b5 $17) 23... Rxd8 24. Rxa4 b5 $15) 23. b3 {[%emt 0:00:42]} b6 {[%emt 0:02:24]} 24. Kg1 {[%emt 0:00:52]} Rfe8 {[%emt 0:03:02]} 25. Rxd8 {[%emt 0:03:01]} Rxd8 {[%emt 0:00:07]} 26. Re1 {[%emt 0:00:31]} Nh7 {[%emt 0:01:56]} 27. h3 {[%emt 0:01:33]} Bb7 {[%emt 0:00:24]} 28. Be2 {[%emt 0:00:50]} Qg5 {[%emt 0:03:12]} (28... Nf6 $5) 29. Bd3 {[%emt 0:00:30]} Qxe3+ {[%emt 0:00:18]} (29... Qf6 $1 $11) 30. Rxe3 $14 {[%emt 0:00:12]} f6 {[%emt 0:00:04]} 31. Nd2 {[%emt 0:00:45]} ({White should try} 31. g3 $14) 31... Ng5 $11 {[%emt 0:00:35][%cal Og7g6] The position is equal.} 32. Kf2 {[%emt 0:00:30]} Rd4 {[%emt 0:00:56]} 33. c3 {[%emt 0:00:31]} Rd8 {[%emt 0:00:55]} 34. Ke2 {[%emt 0:00:18]} Kf8 {[%emt 0:00:37]} 35. Nf3 {[%emt 0:00:33]} Nxf3 {[%emt 0:00:47]} 36. Kxf3 {[%emt 0:00:29][%mdl 4096] Endgame. KRB-KRB} Ke7 {[%emt 0:00:08]} (36... g6 $5 37. Kg4 (37. fxg6 $2 {perishes.} f5 $19) 37... gxf5+ 38. exf5 Bxg2 $11) 37. Kg4 {[%emt 0:00:41]} Rh8 {[%emt 0:00:31][%cal Og7g6]} 38. Bc4 {[%emt 0:00:28]} Bc8 {[%emt 0:00:32]} 39. Kf3 {[%emt 0:00:23]} Rh6 {[%emt 0:00:52]} 40. Bd5 {[%emt 0:00:35]} g6 {[%emt 0:00:56]} 41. fxg6 {[%emt 0:00:05]} Rxg6 {[%emt 0:00:04]} 42. Kf2 {[%emt 0:00:30]} Rg5 {[%emt 0:01:06]} 43. g4 {[%emt 0:00:57]} hxg3+ {[%emt 0:01:37]} 44. Rxg3 {[%emt 0:00:04]} Rh5 {[%emt 0:00:12]} 45. Rg7+ {[%emt 0:00:51]} Kd6 {[%emt 0:00:15]} 46. Rg6 {[%emt 0:00:15]} Rxh3 {[%emt 0:01:34]} 47. Rxf6+ {[%emt 0:00:05]} Ke7 {[%emt 0:00:11]} 48. Rf7+ {[%emt 0:00:17]} Kd6 {[%emt 0:00:14]} 49. Rf6+ {[%emt 0:00:11]} Ke7 {[%emt 0:00:07] Weighted Error Value: White=0.11 (very precise) /Black=0.10 (very precise) .  Mistake:       	White=2     	Black=2      Inaccurate:     	White=2     	Black=2      OK:         	White=18    	Black=12     Best:        	White=1     	Black=5} 1/2-1/2

[Event "Romanian-ch Youth Open U18 2024"]
[Site "Eforie Nord"]
[Date "2024.04.17"]
[Round "7.1"]
[White "Nedelcu, Teodor-Cosmin"]
[Black "Nastore, Pavel-Alexandru"]
[Result "1/2-1/2"]
[ECO "D57"]
[WhiteElo "2306"]
[BlackElo "2189"]
[Annotator "TA"]
[PlyCount "48"]
[EventDate "2024.04.10"]
[EventType "swiss"]
[EventCountry "ROU"]
[SourceTitle "playchess.com"]
[Source "ChessBase"]
[SourceQuality "1"]
[TimeControl "5400+30"]

{[%evp 20,48,10,8,0,0,0,0,9,-8,-14,-8,-19,-25,-19,-59,-58,-86,-84,-70,-57,-66,-41,-152,-154,-150,0,0,0,0,3]} 1. d4 {[%emt 0:00:02]} d5 {[%emt 0:00:12]} 2. c4 {[%emt 0:00:04]} e6 {[%emt 0:00:04]} 3. Nc3 {[%emt 0:00:05]} Be7 {[%emt 0:00:05]} 4. Nf3 {[%emt 0:00:11]} Nf6 {[%emt 0:00:08]} 5. Bg5 {[%emt 0:00:07]} O-O {[%emt 0:00:37]} 6. e3 {[%emt 0:00:03]} h6 {[%emt 0:00:05]} 7. Bh4 {[%emt 0:00:03]} Ne4 {[%emt 0:00:10]} 8. Bxe7 {[%emt 0:00:06]} Qxe7 {[%emt 0:00:05]} 9. cxd5 {[%emt 0:00:46]} Nxc3 {[%emt 0:00:08]} 10. bxc3 {[%emt 0:00:01]} exd5 {[%emt 0:00:10]} 11. Be2 {[%emt 0:00:26]} Be6 {[%emt 0:17:48]} 12. O-O {[%emt 0:00:16]} c5 {[%emt 0:00:17]} 13. Rc1 {[%emt 0:00:32]} Rd8 {[%emt 0:16:18]} 14. Qb3 {[%emt 0:02:19]} c4 {[%emt 0:03:43]} 15. Qb1 {[%emt 0:00:37]} Nc6 {[%emt 0:00:30]} 16. Nd2 {[%emt 0:00:50]} Rab8 {[%emt 0:01:00]} 17. e4 {[%emt 0:01:09]} b5 {[%emt 0:01:25][%cal Bb7b5,Bb5b4,Bb4c3][%mdl 32]} 18. exd5 {[%emt 0:07:13]} Bxd5 {[%emt 0:00:36]} 19. Rfe1 {[%emt 0:00:05]} Qg5 {[%emt 0:09:57][%csl Gd5,LRd2,LRg2][%cal Rg5g2] [#]} 20. Ne4 {[%emt 0:04:55]} Qg6 {[%emt 0:00:30]} 21. Bf3 {[%emt 0:01:50]} (21. Bf1 $15) 21... b4 $17 {[%emt 0:00:57] Hoping for ...bxc3.} 22. Qb2 {[%emt 0:00:43] [#]} Re8 {[%emt 0:09:26]} (22... bxc3 $1 $17 23. Qxc3 Nb4) 23. Nf6+ $1 $11 {[%emt 0:04:20]} Qxf6 {[%emt 0:00:30]} 24. Bxd5 {[%emt 0:00:05]} bxc3 {[%emt 0:04:36] Weighted Error Value: White=0.18 (very precise) /Black=0.18 (very precise) .  Mistake:       	White=1     	Black=1      Inaccurate:     	White=2     	---        OK:         	White=2     	Black=3      Best:        	White=1     	Black=4      Strong:       	White=1     	---} 1/2-1/2

[Event "Romanian-ch Youth Open U18 2024"]
[Site "Eforie Nord"]
[Date "2024.04.17"]
[Round "7.2"]
[White "Veress, Armand"]
[Black "Sachilaru, Alexandru"]
[Result "1/2-1/2"]
[ECO "E90"]
[WhiteElo "2098"]
[BlackElo "2203"]
[Annotator "TA"]
[PlyCount "104"]
[EventDate "2024.04.10"]
[EventType "swiss"]
[EventCountry "ROU"]
[SourceTitle "playchess.com"]
[Source "ChessBase"]
[SourceQuality "1"]
[TimeControl "5400+30"]

{[%evp 37,104,-252,-237,-258,-250,-238,-255,-492,-168,-161,-175,-167,-164,-426,0,0,103,48,146,119,160,122,156,12,8,15,237,237,227,231,228,193,222,222,221,244,339,329,277,68,67,69,70,78,80,0,0,0,0,0,0,0,0,0,0,0,0,0,0,0,0,0,0,0,0,0,0,0,0]} 1. d4 {[%emt 0:00:05]} Nf6 {[%emt 0:00:17]} 2. c4 {[%emt 0:00:11]} g6 {[%emt 0:00:13]} 3. Nc3 {[%emt 0:00:13]} Bg7 {[%emt 0:00:13]} 4. e4 {[%emt 0:00:12]} d6 {[%emt 0:00:12]} 5. Nf3 {[%emt 0:00:16]} O-O {[%emt 0:00:27]} 6. h3 {[%emt 0:00:15]} e5 {[%emt 0:01:15]} 7. d5 {[%emt 0:00:17]} a5 {[%emt 0:01:07]} 8. Bd3 {[%emt 0:00:16]} Na6 {[%emt 0:01:48]} 9. O-O {[%emt 0:00:28]} Bd7 {[%emt 0:03:29]} 10. Bc2 {[%emt 0:03:14]} c6 {[%emt 0:07:52]} 11. dxc6 {[%emt 0:15:33]} Bxc6 {[%emt 0:00:57]} 12. Qe2 {[%emt 0:01:20]} Nc5 {[%emt 0:04:38]} 13. Rd1 {[%emt 0:01:17]} Qe7 {[%emt 0:02:01]} 14. b3 {[%emt 0:03:08]} Nh5 {[%emt 0:08:46]} 15. g3 {[%emt 0:03:36]} Rae8 {[%emt 0:17:29]} 16. Be3 {[%emt 0:11:37]} Ne6 {[%emt 0:08:52]} 17. Nd5 {[%emt 0:02:28]} Qd7 {[%emt 0:02:46]} 18. c5 {[%emt 0:10:50]} f5 {[%emt 0:17:06]} 19. exf5 $2 {[%emt 0:01:57][%mdl 8192]} (19. Nb6 $11 {and White is okay.} Qf7 20. Ng5 (20. cxd6 f4 $17) 20... Nxg5 21. Bxg5 dxc5 22. b4 Kh8 (22... cxb4 $2 23. Bb3 $18)) 19... Nd4 $1 $19 {[%emt 0:05:57]} 20. Nxd4 {[%emt 0:22:30]} (20. Bxd4 exd4 21. Qc4 Qf7 $19 (21... gxf5 $2 22. Nf6+ Kh8 23. Nxd7 $18)) 20... exd4 {[%emt 0:00:07]} 21. Qc4 {[%emt 0:00:16]} (21. fxg6 $2 dxe3 (21... Qxh3 $2 22. gxh7+ Kh8 23. Qf1 $19) 22. gxh7+ Kh8 $19) 21... Qf7 {[%emt 0:01:55]} (21... dxe3 $2 22. Nf6+ Kh8 23. Nxd7 $18) 22. fxg6 $2 {[%emt 0:00:19]} (22. Rxd4 {is a better defense.} Bxd4 23. fxg6 hxg6 (23... Qxd5 $2 24. Qxd5+ Bxd5 25. gxh7+ Kf7 26. Bxd4 $19) 24. Bxg6 Qxd5 25. Bxd4 Qxc4 26. bxc4 Nxg3 27. Bxe8 Ne2+ 28. Kf1 Rxe8 (28... Nxd4 29. Bxc6 bxc6 30. cxd6 $17) 29. Be3 Ng3+ 30. Ke1) 22... Qxd5 $2 {[%emt 0:01:11]} (22... hxg6 23. Bxg6 Qe6 (23... Qxd5 24. Qxd5+ Bxd5 25. Bxe8 $11) 24. Rxd4 (24. Bxh5 $2 Bxd5 $19) 24... Bxd4 (24... Qxg6 $2 25. Ne7+ Kh7 26. Nxg6 $18) 25. Bxe8 Bxd5 (25... Bxa1 $2 26. Ne7+ Kg7 27. Qxe6 $18) 26. Qxd4 $17) (22... Qf3 {[%cal Od4e3]} 23. gxh7+ (23. Bxd4 $2 Bxd5 24. gxh7+ Kh8 $19) 23... Kh8 24. Bxd4 Bxd5 25. Qxd5 Re1+ 26. Rxe1 Qxd5 27. Bxg7+ Kxg7 (27... Nxg7 $2 28. Rad1 $19) 28. Re7+ Kh8) 23. Qxd5+ {[%emt 0:00:07]} Bxd5 {[%emt 0:00:10]} 24. gxh7+ {[%emt 0:00:04]} Kh8 {[%emt 0:00:53]} 25. Bxd4 $2 {[%emt 0:00:10] [#]} (25. cxd6 $2 dxe3 26. fxe3 Bc6 $19 (26... Rxe3 $2 27. Rxd5 Rxg3+ 28. Kh1 $19)) (25. Rxd4 Bf3 (25... Bxd4 26. Bxd4+ Ng7 27. cxd6 $17) 26. cxd6 Nxg3 (26... Bxd4 27. Bxd4+ Ng7 28. Bb6 $15) 27. Re1 Ne2+ (27... Bxd4 28. Bxd4+) 28. Rxe2 Bxe2 29. Ra4) 25... Bxd4 $2 {[%emt 0:00:40]} (25... Re1+ $1 $19 26. Rxe1 Bxd4) 26. Rxd4 $11 {[%emt 0:00:10]} Nf6 {[%emt 0:01:41]} (26... Re2 $11 {keeps the balance.} 27. Rxd5 Rfxf2 28. Rxh5 Rg2+ 29. Kf1 Ref2+ 30. Ke1 Rxc2) 27. cxd6 $16 {[%emt 0:00:48]} Rd8 {[%emt 0:06:04]} (27... Bc6 $1 $14) 28. g4 $16 {[%emt 0:00:48]} Rxd6 {[%emt 0:01:02]} 29. g5 {[%emt 0:03:11]} ({But not} 29. Rad1 Rc6 30. Bf5 Rc5 $16) 29... Nh5 {[%emt 0:02:05] [#]} 30. Rad1 {[%emt 0:00:15]} (30. Be4 $1 $16 Nf4 31. Kh2) 30... Nf4 $11 {[%emt 0:00:56]} 31. Kh2 {[%emt 0:01:15]} Ne2 $2 {[%emt 0:01:44]} (31... Re6 $1 $11 {and Black stays safe.}) 32. Rxd5 $18 {[%emt 0:01:10]} Rxf2+ {[%emt 0:00:27]} 33. Kh1 {[%emt 0:00:05]} Rxd5 {[%emt 0:00:36]} 34. Rxd5 {[%emt 0:00:06]} Ng3+ {[%emt 0:00:12]} 35. Kg1 {[%emt 0:00:05]} Rxc2 {[%emt 0:00:26]} 36. g6 {[%emt 0:00:17]} Rc8 {[%emt 0:01:16]} 37. Re5 {[%emt 0:00:21]} ({Not} 37. Rxa5 Ne2+ 38. Kh1 Nf4 $16) 37... Rf8 {[%emt 0:00:54]} 38. g7+ $2 {[%emt 0:00:42]} (38. Rxa5 Nf5 $16) (38. h4 $18) 38... Kxg7 $14 {[%emt 0:00:08]} 39. Rg5+ {[%emt 0:00:02]} ({Weaker is} 39. Rxa5 Ne2+ (39... Kxh7 $2 40. Rb5 $17) 40. Kg2 Kxh7 $17) 39... Kxh7 {[%emt 0:00:15]} 40. Rxg3 {[%emt 0:00:03]} Rc8 {[%emt 0:01:07]} 41. Kh2 {[%emt 0:05:25]} (41. a4 $16) 41... Rc2+ $11 {[%emt 0:00:41]} 42. Rg2 {[%emt 0:00:04]} Rc3 $1 {[%emt 0:00:14]} 43. Rd2 {[%emt 0:01:53]} b5 {[%emt 0:01:01]} 44. Rd5 {[%emt 0:02:00]} Rc2+ {[%emt 0:00:27]} 45. Kg3 {[%emt 0:00:03]} Rxa2 {[%emt 0:00:23]} 46. Rxb5 {[%emt 0:00:05]} a4 {[%emt 0:00:13]} 47. b4 {[%emt 0:02:23]} a3 {[%emt 0:00:31]} 48. Kg4 {[%emt 0:02:07]} Rb2 {[%emt 0:00:42]} 49. Kh5 {[%emt 0:00:41]} a2 {[%emt 0:00:18]} 50. Rb7+ {[%emt 0:00:07]} Kg8 {[%emt 0:00:07]} 51. Ra7 {[%emt 0:00:07]} Rxb4 {[%emt 0:00:09]} 52. Rxa2 {[%emt 0:00:03]} Rb5+ {[%emt 0:00:06]} 1/2-1/2